fUST/lending_fUST_20251014
["ID","MTS","AMOUNT","RATE_DAILY","PERIOD"]
[391181764,1760409066206,-151.0,0.00023943,2]
[391181765,1760409066222,-152.95737341,0.00023943,2]
[391181766,1760409066232,-152.22499447,0.00023943,2]
[391181767,1760409066242,-151.12001261,0.00023943,2]
[391181768,1760409066251,-151.87773016,0.00023943,2]
[391181769,1760409066260,-500.0,0.00023943,2]
[391181770,1760409066270,-151.0,0.00023943,2]
[391181771,1760409066279,-151.0,0.00023943,2]
[391181772,1760409066289,-151.0,0.00023943,2]
[391181773,1760409066299,-500.0,0.00023943,2]
[391181774,1760409066308,-336.28159337,0.00023977,2]
[391181775,1760409066317,-500.0,0.00023986,2]
[391181776,1760409066327,-151.0,0.00023998,2]
[391181777,1760409066337,-153.36904992,0.00023998,2]
[391181778,1760409066346,-176.28429008,0.00023998,2]
[391181779,1760409066355,-152.84661039,0.00023998,2]
[391181780,1760409066364,-151.0,0.00023998,2]
[391181781,1760409066374,-151.0,0.00023998,2]
[391181782,1760409066383,-246.41484151,0.00023998,2]
[391181783,1760409066392,-500.0,0.00023998,2]
[391181784,1760409066401,-5333.94479104,0.00024,60]
[391181785,1760409066410,-200.88144841,0.00024052,2]
[391181786,1760409066419,-151.0,0.00024052,2]
[391181787,1760409066428,-151.0,0.00024052,2]
[391181788,1760409066438,-500.0,0.00024052,2]
[391181789,1760409066447,-151.0,0.00024107,2]
[391181790,1760409066456,-202.64605208,0.00024107,2]
[391181791,1760409066466,-500.0,0.00024107,2]
[391181792,1760409066475,-15728.87862837,0.00024142,2]
[391181793,1760409066484,-202.60216065,0.00024162,2]
[391181794,1760409066494,-500.0,0.00024162,2]
[391181795,1760409066503,-1513.90260826,0.00024177,2]
[391181796,1760409066513,-1014.47427922,0.00024177,2]
[391181797,1760409066522,-500.0,0.00024178,2]
[391181798,1760409066532,-500.0,0.00024217,2]
[391181799,1760409066541,-503.92937964,0.00024219,2]
[391181800,1760409066550,-2000.0,0.00024219,2]
[391181801,1760409066559,-2000.0,0.00024219,2]
[391181802,1760409066568,-2000.0,0.00024219,2]
[391181803,1760409066577,-3515.80169632,0.0002426,2]
[391181804,1760409066587,-500.0,0.0002426,2]
[391181805,1760409066601,-516.14520582,0.0002426,2]
[391181806,1760409066610,-1021.30467424,0.0002426,2]
[391181807,1760409066620,-3500.0,0.0002426,2]
[391181808,1760409066630,-500.0,0.00024272,2]
[391181809,1760409066640,-500.0,0.00024287,2]
[391181810,1760409066649,-69084.52,0.000243,7]
[391181811,1760409066659,-308.69320318,0.00024311,2]
[391181812,1760409066668,-500.0,0.00024326,2]
[391181813,1760409066679,-165.0,0.00024356,13]
[391181814,1760409066689,-500.0,0.00024381,2]
[391181815,1760409066698,-8011.6790234,0.00024424,2]
[391181816,1760409066707,-500.0,0.00024436,2]
[391181817,1760409066717,-1554.1498984,0.0002449,2]
[391181818,1760409066727,-500.0,0.00024491,2]
[391181819,1760409066736,-500.0,0.00024534,2]
[391181820,1760409066746,-500.0,0.00024546,2]
[391181821,1760409066755,-365.10572994,0.00024577,2]
[391181822,1760409066764,-151.0,0.000246,8]
[391181823,1760409066774,-500.0,0.000246,2]
[391181824,1760409066784,-500.0,0.00024655,2]
[391181825,1760409066793,-1500.0,0.00024657,8]
[391181826,1760409066803,-16162.68,0.00024663,2]
[391181827,1760409066812,-500.0,0.0002471,2]
[391181828,1760409066821,-409.59158678,0.00024726,2]
[391181829,1760409066830,-500.0,0.00024765,2]
[391181830,1760409066839,-506.0347543,0.00024767,2]
[391181831,1760409066848,-2500.0,0.00024767,2]
[391181832,1760409066858,-2500.0,0.00024767,2]
[391181833,1760409066868,-1067.01941196,0.00024808,2]
[391181834,1760409066878,-500.0,0.00024808,2]
[391181835,1760409066887,-587.0,0.00024811,2]
[391181836,1760409066896,-500.0,0.0002482,2]
[391181837,1760409066906,-571.35433668,0.00024835,2]
[391181838,1760409066915,-152.25908977,0.00024867,5]
[391181839,1760409066925,-500.0,0.00024873,2]
[391181840,1760409066934,-503.74782024,0.00024873,2]
[391181841,1760409066943,-500.0,0.00024873,2]
[391181842,1760409066952,-177.67660152,0.00024873,2]
[391181843,1760409066961,-500.0,0.00024873,2]
[391181844,1760409066970,-502.74411963,0.00024873,2]
[391181845,1760409066980,-500.0,0.00024873,2]
[391181846,1760409066989,-500.0,0.00024873,2]
[391181847,1760409066999,-150.0,0.00024873,2]
[391181848,1760409067009,-501.45193989,0.00024873,2]
[391181849,1760409067018,-500.0,0.00024873,2]
[391181850,1760409067028,-500.0,0.00024873,2]
[391181851,1760409067037,-502.96210382,0.00024873,2]
[391181852,1760409067046,-501.3136599,0.00024873,2]
[391181853,1760409067057,-500.99233932,0.00024873,2]
[391181854,1760409067067,-503.30338988,0.00024873,2]
[391181855,1760409067077,-505.25278766,0.00024873,2]
[391181856,1760409067087,-219.33026451,0.00024873,2]
[391181857,1760409067097,-500.0,0.00024873,2]
[391181858,1760409067115,-503.91859813,0.00024873,2]
[391181859,1760409067134,-500.0,0.00024874,2]
[391181860,1760409067144,-600148.40961716,0.00024898,2]
[391181861,1760409067153,-104825.556525,0.000249,2]
[391181862,1760409067162,-482.78319215,0.00024929,2]
[391181863,1760409067172,-1500.0,0.00024931,8]
[391181864,1760409067181,-458.64960447,0.00024976,2]
[391181865,1760409067190,-301.99999903,0.00025,5]
[391181866,1760409067200,-160.0,0.00025022,2]
[391181867,1760409067209,-417.15472785,0.00025039,2]
[391181868,1760409067230,-2125.0,0.00025053,2]
[391181869,1760409067239,-160.0,0.00025057,2]
[391181870,1760409067249,-160.0,0.00025057,2]
[391181871,1760409067258,-160.0,0.00025057,2]
[391181872,1760409067267,-500.0,0.00025082,2]
[391181873,1760409067276,-194.63276301,0.000251,2]
[391181874,1760409067286,-174.61222714,0.000251,2]
[391181875,1760409067295,-189.9368307,0.000251,2]
[391181876,1760409067304,-174.84494797,0.000251,2]
[391181877,1760409067313,-200.92979394,0.000251,2]
[391181878,1760409067322,-372.161,0.00025133,9]
[391181879,1760409067331,-181.29268049,0.00025133,9]
[391181880,1760409067340,-393.92986652,0.00025177,2]
[391181881,1760409067350,-1500.0,0.00025205,8]
[391181882,1760409067359,-1787.6472235,0.00025215,2]
[391181883,1760409067369,-346.7777157,0.00025283,2]
[391181884,1760409067379,-194.63276301,0.000253,2]
[391181885,1760409067388,-174.61222714,0.000253,2]
[391181886,1760409067397,-3000.0,0.00025315,2]
[391181887,1760409067407,-3000.0,0.00025315,2]
[391181888,1760409067416,-500.0,0.00025356,2]
[391181889,1760409067425,-500.99033519,0.00025421,2]
[391181890,1760409067434,-502.958487,0.00025421,2]
[391181891,1760409067443,-503.41227825,0.00025421,2]
[391181892,1760409067452,-409.17640987,0.00025421,2]
[391181893,1760409067461,-1000.0,0.00025421,2]
[391181894,1760409067470,-301.77797328,0.00025421,2]
[391181895,1760409067479,-1006.49356401,0.00025421,2]
[391181896,1760409067488,-505.04973629,0.00025421,2]
[391181897,1760409067497,-1000.0,0.00025421,2]
[391181898,1760409067506,-150.65480345,0.00025455,7]
[391181899,1760409067515,-1500.0,0.00025479,8]
[391181900,1760409067524,-194.63276301,0.000256,2]
[391181901,1760409067533,-174.61222714,0.000256,2]
[391181902,1760409067542,-18856.46,0.00025612,2]
[391181903,1760409067551,-509.08688904,0.0002563,2]
[391181904,1760409067560,-1500.0,0.00025753,8]
[391181905,1760409067570,-422.75400309,0.00025777,2]
[391181906,1760409067579,-194.63276301,0.000258,2]
[391181907,1760409067589,-300.0,0.000258,2]
[391181908,1760409067602,-3510.78884147,0.00025863,2]
[391181909,1760409067611,-1021.416458,0.00025863,2]
[391181910,1760409067620,-864.0,0.00025892,20]
[391181911,1760409067631,-1500.0,0.00025968,2]
[391181912,1760409067640,-1500.0,0.00025968,2]
[391181913,1760409067650,-168.0,0.00026,18]
[391181914,1760409067659,-94683.43497569,0.00026,30]
[391181915,1760409067670,-1500.0,0.00026027,8]
[391181916,1760409067682,-10063.92,0.00026027,2]
[391181917,1760409067692,-69084.52,0.000263,7]
[391181918,1760409067702,-1009.11746002,0.00026301,8]
[391181919,1760409067711,-458.64960447,0.00026368,2]
[391181920,1760409067720,-451.57813967,0.00026377,2]
[391181921,1760409067729,-8050.61002355,0.00026478,2]
[391181922,1760409067739,-1613.00948021,0.00026516,2]
[391181923,1760409067748,-284.77758156,0.00026516,2]
[391181924,1760409067757,-151.0,0.000266,11]
[391181925,1760409067766,-983.858,0.00026643,2]
[391181926,1760409067775,-2163.837,0.00026643,2]
[391181927,1760409067785,-631.0,0.00026643,2]
[391181928,1760409067793,-411.0,0.00026643,2]
[391181929,1760409067802,-418.168,0.00026643,2]
[391181930,1760409067812,-1296.615051,0.00026676,2]
[391181931,1760409067822,-4199.0,0.00026863,2]
[391181932,1760409067831,-480.40227624,0.00026977,2]
[391181933,1760409067840,-823.0,0.0002699,2]
[391181934,1760409067849,-157.47642121,0.00027334,2]
[391181935,1760409067858,-10063.92,0.00027397,4]
[391181936,1760409067943,-150.0,0.00027397,5]
[391181937,1760409067965,-3644.0,0.000274,2]
[391181938,1760409067975,-7823.95,0.000274,2]
[391181939,1760409067984,-151.0,0.00027474,2]
[391181940,1760409067994,-2030.296672,0.00027474,2]
[391181941,1760409068003,-250.0,0.00027474,2]
[391181942,1760409068013,-162.380719,0.00027474,2]
[391181943,1760409068022,-250.0,0.00027474,2]
[391181944,1760409068032,-250.0,0.00027474,2]
[391181945,1760409068042,-250.0,0.00027474,2]
[391181946,1760409068051,-151.0,0.00027474,2]
[391181947,1760409068061,-250.0,0.00027474,2]
[391181948,1760409068070,-151.0,0.00027474,2]
[391181949,1760409068079,-250.0,0.00027474,2]
[391181950,1760409068089,-250.0,0.00027474,2]
[391181951,1760409068098,-151.0,0.00027474,2]
[391181952,1760409068108,-152.7921576,0.00027474,2]
[391181953,1760409068118,-1000.0,0.00027474,2]
[391181954,1760409068127,-250.0,0.00027474,2]
[391181955,1760409068137,-1000.0,0.00027474,2]
[391181956,1760409068146,-250.0,0.00027474,2]
[391181957,1760409068155,-1000.0,0.00027474,2]
[391181958,1760409068165,-250.0,0.00027474,2]
[391181959,1760409068174,-250.0,0.00027474,2]
[391181960,1760409068184,-1000.0,0.00027474,2]
[391181961,1760409068193,-250.0,0.00027474,2]
[391181962,1760409068204,-1000.0,0.00027474,2]
[391181963,1760409068213,-250.0,0.00027474,2]
[391181964,1760409068223,-1000.0,0.00027474,2]
[391181965,1760409068232,-151.0,0.00027474,2]
[391181966,1760409068242,-250.0,0.00027474,2]
[391181967,1760409068252,-1000.0,0.00027474,2]
[391181968,1760409068262,-151.0,0.00027474,2]
[391181969,1760409068272,-162.380719,0.00027474,2]
[391181970,1760409068282,-151.0,0.00027474,2]
[391181971,1760409068292,-151.0,0.00027474,2]
[391181972,1760409068301,-500.0,0.00027474,2]
[391181973,1760409068311,-151.72188997,0.00027474,2]
[391181974,1760409068320,-250.0,0.00027474,2]
[391181975,1760409068330,-1000.0,0.00027474,2]
[391181976,1760409068345,-151.0,0.00027474,2]
[391181977,1760409068354,-500.0,0.00027474,2]
[391181978,1760409068364,-250.0,0.00027474,2]
[391181979,1760409068374,-1000.0,0.00027474,2]
[391181980,1760409068384,-151.0,0.00027474,2]
[391181981,1760409068394,-500.0,0.00027474,2]
[391181982,1760409068403,-250.0,0.00027474,2]
[391181983,1760409068412,-1000.0,0.00027474,2]
[391181984,1760409068422,-500.0,0.00027474,2]
[391181985,1760409068431,-151.0,0.00027474,2]
[391181986,1760409068441,-250.0,0.00027474,2]
[391181987,1760409068451,-820.10634659,0.00027474,2]
[391181988,1760409068461,-500.0,0.00027474,2]
[391181989,1760409068471,-151.0,0.00027474,2]
[391181990,1760409068480,-500.0,0.00027474,2]
[391181991,1760409068489,-151.0,0.00027474,2]
[391181992,1760409068498,-500.0,0.00027474,2]
[391181993,1760409068509,-151.0,0.00027474,2]
[391181994,1760409068518,-500.0,0.00027474,2]
[391181995,1760409068528,-151.0,0.00027474,2]
[391181996,1760409068537,-500.0,0.00027474,2]
[391181997,1760409068547,-151.0,0.00027474,2]
[391181998,1760409068556,-500.0,0.00027474,2]
[391181999,1760409068565,-151.0,0.00027474,2]
[391182000,1760409068575,-151.0,0.00027474,2]
[391182001,1760409068584,-500.0,0.00027474,2]
[391182002,1760409068596,-151.0,0.00027474,2]
[391182003,1760409068606,-151.0,0.00027474,2]
[391182004,1760409068615,-500.0,0.00027474,2]
[391182005,1760409068625,-151.0,0.00027474,2]
[391182006,1760409068635,-151.0,0.00027474,2]
[391182007,1760409068644,-151.0,0.00027474,2]
[391182008,1760409068653,-151.0,0.00027474,2]
[391182009,1760409068663,-500.0,0.00027474,2]
[391182010,1760409068675,-151.0,0.00027474,2]
[391182011,1760409068684,-151.0,0.00027474,2]
[391182012,1760409068693,-151.0,0.00027474,2]
[391182013,1760409068702,-500.0,0.00027474,2]
[391182014,1760409068712,-151.0,0.00027474,2]
[391182015,1760409068722,-151.0,0.00027474,2]
[391182016,1760409068731,-194.63809315,0.00027474,2]
[391182017,1760409068740,-500.0,0.00027474,2]
[391182018,1760409068749,-151.0,0.00027474,2]
[391182019,1760409068759,-151.0,0.00027474,2]
[391182020,1760409068767,-500.0,0.00027474,2]
[391182021,1760409068776,-151.0,0.00027474,2]
[391182022,1760409068786,-151.0,0.00027474,2]
[391182023,1760409068795,-622.89075054,0.00027474,2]
[391182024,1760409068805,-151.0,0.00027474,2]
[391182025,1760409068815,-151.0,0.00027474,2]
[391182026,1760409068824,-151.0,0.00027474,2]
[391182027,1760409068833,-151.0,0.00027474,2]
[391182028,1760409068843,-151.0,0.00027474,2]
[391182029,1760409068852,-151.0,0.00027474,2]
[391182030,1760409068862,-18603.8837,0.00027474,2]
[391182031,1760409068872,-1000.0,0.00027474,2]
[391182032,1760409068884,-151.0,0.00027474,2]
[391182033,1760409068894,-1000.0,0.00027474,2]
[391182034,1760409068903,-151.0,0.00027474,2]
[391182035,1760409068914,-1000.0,0.00027474,2]
[391182036,1760409068923,-151.0,0.00027474,2]
[391182037,1760409068933,-1000.0,0.00027474,2]
[391182038,1760409068943,-151.0,0.00027474,2]
[391182039,1760409068953,-1000.0,0.00027474,2]
[391182040,1760409068962,-297.08905221,0.00027474,2]
[391182041,1760409068972,-1000.0,0.00027474,2]
[391182042,1760409068982,-250.0,0.00027474,2]
[391182043,1760409068992,-1000.0,0.00027474,2]
[391182044,1760409069002,-250.0,0.00027474,2]
[391182045,1760409069012,-1000.0,0.00027474,2]
[391182046,1760409069022,-250.0,0.00027474,2]
[391182047,1760409069032,-1000.0,0.00027474,2]
[391182048,1760409069041,-250.0,0.00027474,2]
[391182049,1760409069055,-1000.0,0.00027474,2]
[391182050,1760409069073,-250.0,0.00027474,2]
[391182051,1760409069083,-1000.0,0.00027474,2]
[391182052,1760409069096,-1424.25330228,0.00027529,2]
[391182053,1760409069106,-509.22641282,0.00027577,2]
[391182054,1760409069118,-193.0,0.00027644,25]
[391182055,1760409069131,-800.0,0.00027674,2]
[391182056,1760409069141,-458.64960447,0.0002776,2]
[391182057,1760409069152,-2473.25766201,0.00028,60]
[391182058,1760409069162,-151.0,0.00028022,2]
[391182059,1760409069172,-168.3888056,0.00028022,2]
[391182060,1760409069184,-19292.2273969,0.00028022,2]
[391182061,1760409069196,-500.933,0.00028106,2]
[391182062,1760409069206,-2203.936,0.00028106,2]
[391182063,1760409069216,-8050.61002355,0.00028156,2]
[391182064,1760409069226,-538.05054939,0.00028177,2]
[391182065,1760409069235,-500.0,0.00028219,30]
[391182066,1760409069244,-500.0,0.00028219,30]
[391182067,1760409069254,-500.0,0.00028219,30]
[391182068,1760409069264,-500.0,0.00028219,30]
[391182069,1760409069273,-500.0,0.00028219,30]
[391182070,1760409069283,-500.0,0.00028219,30]
[391182071,1760409069292,-500.0,0.00028219,30]
[391182072,1760409069301,-500.0,0.00028219,30]
[391182073,1760409069311,-500.0,0.00028219,30]
[391182074,1760409069320,-500.0,0.00028219,30]
[391182075,1760409069330,-324.4654374,0.00028219,30]
[391182076,1760409069339,-1000.0,0.00028482,30]
[391182077,1760409069350,-320.23838143,0.0002857,2]
[391182078,1760409069359,-167.80282393,0.0002857,2]
[391182079,1760409069369,-20006.03981059,0.0002857,2]
[391182080,1760409069380,-151.0,0.000286,18]
[391182081,1760409069390,-800.0,0.00028631,2]
[391182082,1760409069400,-763.17135023,0.00028674,2]
[391182083,1760409069410,-464.353221,0.00028678,14]
[391182084,1760409069419,-151.0,0.00028678,2]
[391182085,1760409069428,-151.0,0.00028678,2]
[391182086,1760409069438,-151.0,0.00028678,2]
[391182087,1760409069447,-151.0,0.00028678,2]
[391182088,1760409069456,-151.0,0.00028678,2]
[391182089,1760409069466,-151.0,0.00028678,2]
[391182090,1760409069475,-151.0,0.00028678,2]
[391182091,1760409069485,-151.0,0.00028678,2]
[391182092,1760409069494,-151.0,0.00028678,2]
[391182093,1760409069504,-151.0,0.00028678,2]
[391182094,1760409069513,-151.0,0.00028678,2]
[391182095,1760409069522,-151.0,0.00028678,2]
[391182096,1760409069531,-151.0,0.00028678,2]
[391182097,1760409069540,-151.0,0.00028678,2]
[391182098,1760409069550,-151.0,0.00028678,2]
[391182099,1760409069559,-151.0,0.00028678,2]
[391182100,1760409069568,-151.0,0.00028678,2]
[391182101,1760409069578,-151.0,0.00028678,2]
[391182102,1760409069587,-69084.52,0.000287,7]
[391182103,1760409069600,-151.0,0.000287,30]
[391182104,1760409069610,-151.0,0.000287,30]
[391182105,1760409069620,-151.0,0.000287,30]
[391182106,1760409069631,-151.0,0.000287,30]
[391182107,1760409069642,-151.03972356,0.000287,30]
[391182108,1760409069652,-151.0,0.000287,30]
[391182109,1760409069661,-151.0,0.000287,30]
[391182110,1760409069744,-800.0,0.00028742,2]
[391182111,1760409069763,-256.42147587,0.00028744,2]
[391182112,1760409069773,-521.37491996,0.0002876,2]
[391182113,1760409069782,-10063.92,0.00028767,6]
[391182114,1760409069792,-566.87468597,0.00028777,2]
[391182115,1760409069802,-149136.66166159,0.000288,30]
[391182116,1760409069811,-168.3888056,0.00028843,2]
[391182117,1760409069820,-1000.0,0.00028925,5]
[391182118,1760409069830,-1071.91,0.00029,2]
[391182119,1760409069839,-1104.65859027,0.00029,2]
[391182120,1760409069849,-7114.23578319,0.00029,30]
[391182121,1760409069858,-200.25802931,0.00029,120]
[391182122,1760409069867,-303.36399495,0.0002905,2]
[391182123,1760409069879,-20746.26328358,0.00029118,2]
[391182124,1760409069889,-700.0,0.00029141,7]
[391182125,1760409069899,-458.64960447,0.00029152,2]
[391182126,1760409069908,-1071.91,0.00029174,2]
[391182127,1760409069918,-5033.04979759,0.00029272,20]
[391182128,1760409069927,-5000.0,0.00029272,24]
[391182129,1760409069937,-204.0,0.00029288,33]
[391182130,1760409069947,-800.0,0.00029288,2]
[391182131,1760409069957,-1071.91,0.00029348,2]
[391182132,1760409069966,-1152.0,0.0002936,2]
[391182133,1760409069975,-595.69882254,0.00029377,2]
[391182134,1760409069985,-277.0,0.000294,2]
[391182135,1760409069994,-3644.0,0.000294,2]
[391182136,1760409070003,-7823.95,0.000294,2]
[391182137,1760409070013,-150.0,0.000294,10]
[391182138,1760409070022,-800.0,0.00029429,2]
[391182139,1760409070031,-1532.38206024,0.00029432,2]
[391182140,1760409070040,-159782.9603,0.00029444,2]
[391182141,1760409070049,-800.0,0.00029466,2]
[391182142,1760409070059,-1071.91,0.00029522,2]
[391182143,1760409070068,-1087.0,0.00029546,2]
[391182144,1760409070077,-600.0,0.00029548,2]
[391182145,1760409070086,-95000.0,0.0002956,2]
[391182146,1760409070096,-800.0,0.0002957,2]
[391182147,1760409070106,-133031.44237345,0.00029601,4]
[391182148,1760409070115,-1087.0,0.00029634,2]
[391182149,1760409070125,-981.0,0.00029643,2]
[391182150,1760409070135,-2161.0,0.00029643,2]
[391182151,1760409070144,-629.457,0.00029643,2]
[391182152,1760409070153,-406.048,0.00029643,2]
[391182153,1760409070162,-411.0,0.00029643,2]
[391182154,1760409070172,-21513.87502507,0.00029666,2]
[391182155,1760409070182,-800.0,0.00029678,2]
[391182156,1760409070191,-1071.91,0.00029696,2]
[391182157,1760409070200,-800.0,0.00029727,2]
[391182158,1760409070209,-151.018444,0.0002974,4]
[391182159,1760409070219,-158.752212,0.0002974,4]
[391182160,1760409070228,-8050.61002355,0.00029833,2]
[391182161,1760409070238,-600.0,0.00029856,2]
[391182162,1760409070247,-1507.642386,0.000299,3]
[391182163,1760409070256,-800.0,0.0002992,2]
[391182164,1760409070265,-700.0,0.00029963,7]
[391182165,1760409070274,-624.52295911,0.00029977,2]
[391182166,1760409070283,-1087.0,0.00029997,2]
[391182167,1760409070293,-205.215,0.0003,2]
[391182168,1760409070302,-1103.0,0.0003,7]
[391182169,1760409070311,-790.35504747,0.0003,2]
[391182170,1760409070320,-7284.07544672,0.0003,2]
[391182171,1760409070330,-301.41338794,0.0003,120]
[391182172,1760409070339,-999.999999,0.0003,60]
[391182173,1760409070350,-1644891.27497773,0.0003,9]
[391182174,1760409070358,-525.10596981,0.0003,2]
[391182175,1760409070368,-151.0,0.0003,30]
[391182176,1760409070378,-151.0,0.0003,30]
[391182177,1760409070387,-151.0,0.0003,30]
[391182178,1760409070396,-152.529517,0.0003,30]
[391182179,1760409070406,-151.69239,0.0003,30]
[391182180,1760409070415,-151.0,0.0003,30]
[391182181,1760409070424,-151.0,0.0003,30]
[391182182,1760409070433,-151.0,0.0003,30]
[391182183,1760409070442,-151.0,0.0003,30]
[391182184,1760409070451,-284.911422,0.0003,30]
[391182185,1760409070461,-151.0,0.0003,30]
[391182186,1760409070470,-232.5147,0.0003,30]
[391182187,1760409070479,-151.90355,0.0003,30]
[391182188,1760409070488,-222.699761,0.0003,30]
[391182189,1760409070497,-151.0,0.0003,30]
[391182190,1760409070506,-222.699761,0.0003,30]
[391182191,1760409070515,-222.699761,0.0003,30]
[391182192,1760409070524,-222.699761,0.0003,30]
[391182193,1760409070534,-151.514616,0.0003,30]
[391182194,1760409070543,-151.0,0.0003,30]
[391182195,1760409070552,-151.0,0.0003,30]
[391182196,1760409070560,-151.0,0.0003,30]
[391182197,1760409070570,-477.257238,0.0003,30]
[391182198,1760409070579,-477.257238,0.0003,30]
[391182199,1760409070588,-477.257238,0.0003,30]
[391182200,1760409070602,-477.257238,0.0003,30]
[391182201,1760409070611,-154.473212,0.0003,30]
[391182202,1760409070620,-151.0,0.0003,30]
[391182203,1760409070632,-151.0,0.0003,30]
[391182204,1760409070642,-296.221287,0.0003,30]
[391182205,1760409070651,-151.0,0.0003,30]
[391182206,1760409070660,-151.0,0.0003,30]
[391182207,1760409070671,-1000.0,0.0003,4]
[391182208,1760409070681,-256.36543196,0.0003001,2]
[391182209,1760409070690,-1025.46172785,0.0003001,2]
[391182210,1760409070700,-2307.28888767,0.0003001,2]
[391182211,1760409070709,-4101.84691141,0.0003001,2]
[391182212,1760409070718,-6409.13579907,0.0003001,2]
[391182213,1760409070727,-9219.92639512,0.0003001,2]
[391182214,1760409070736,-527.31537322,0.0003001,2]
[391182215,1760409070746,-2109.26149289,0.0003001,2]
[391182216,1760409070755,-4741.09252065,0.0003001,2]
[391182217,1760409070764,-665.58066436,0.0003001,2]
[391182218,1760409070773,-2662.32265742,0.0003001,2]
[391182219,1760409070782,-5984.23575322,0.0003001,2]
[391182220,1760409070791,-236.4709199,0.00030076,2]
[391182221,1760409070800,-1358.77571986,0.00030092,2]
[391182222,1760409070811,-152873.29644372,0.000301,3]
[391182223,1760409070820,-52333.72378641,0.0003012,7]
[391182224,1760409070829,-800.0,0.00030122,2]
[391182225,1760409070838,-1000.0,0.00030136,30]
[391182226,1760409070847,-1000.0,0.00030136,30]
[391182227,1760409070856,-1000.0,0.00030136,30]
[391182228,1760409070866,-1000.0,0.00030136,30]
[391182229,1760409070875,-1000.0,0.00030136,30]
[391182230,1760409070886,-1000.0,0.00030136,30]
[391182231,1760409070895,-278.59642964,0.00030136,30]
[391182232,1760409070905,-889.66643717,0.00030136,2]
[391182233,1760409070914,-1000.0,0.00030136,30]
[391182234,1760409070924,-1000.0,0.00030136,30]
[391182235,1760409070934,-1000.0,0.00030136,30]
[391182236,1760409070944,-1000.0,0.00030136,30]
[391182237,1760409070953,-1000.0,0.00030136,30]
[391182238,1760409070964,-1000.0,0.00030136,30]
[391182239,1760409070973,-1000.0,0.00030136,30]
[391182240,1760409070983,-219.94684827,0.00030136,30]
[391182241,1760409070992,-400.0,0.00030136,120]
[391182242,1760409071001,-10063.92,0.00030136,8]
[391182243,1760409071011,-200.3671795,0.00030137,5]
[391182244,1760409071021,-5000.0,0.00030137,60]
[391182245,1760409071031,-800.0,0.00030155,2]
[391182246,1760409071040,-600.0,0.00030163,2]
[391182247,1760409071051,-174.61919141,0.00030212,2]
[391182248,1760409071062,-22309.888401,0.00030214,2]
[391182249,1760409071071,-669.73508487,0.0003022,2]
[391182250,1760409071081,-1358.77571987,0.00030268,2]
[391182251,1760409071090,-400.0,0.00030273,120]
[391182252,1760409071099,-800.0,0.000303,2]
[391182253,1760409071108,-1087.0,0.00030316,2]
[391182254,1760409071118,-22541.24321087,0.0003034,2]
[391182255,1760409071127,-152.045511,0.00030344,30]
[391182256,1760409071136,-151.0,0.00030344,30]
[391182257,1760409071146,-151.0,0.00030344,30]
[391182258,1760409071156,-151.0,0.00030344,30]
[391182259,1760409071165,-151.0,0.00030344,2]
[391182260,1760409071175,-151.0,0.00030344,30]
[391182261,1760409071184,-152.189426,0.00030344,30]
[391182262,1760409071193,-151.0,0.00030344,30]
[391182263,1760409071202,-153.068859,0.00030344,30]